Cogmind - Beta 10.2 @@@ ROGUE MODE // 2020.11.14 @ 21:24:58 // Halloween2020/ForbiddenLore Player: WayneKnight Result: Self-destructed Performance ------------- Evolutions (4) 2000 Regions Visited (12) 2400 Robots Destroyed (109) 545 Value Destroyed (4145) 4145 Prototype IDs (36) 720 Alien Tech Used (0) 0 Bonus (1682) 1682 TOTAL SCORE: 11492 Bonus ------- High Alert Combat Kills 13 Follower Combat Kills 7 Entered Garrisons 400 Used RIF Installer 1000 Aligned with FarCom 300 Friendly Fire -38 Cogmind --------- Core Integrity 786/850 Matter 50/300 Energy 150/150 System Corruption 7% Temperature Cool (117) Movement Hovering (108) Ox1 Location -6/Waste Parts ------- > --- POWER (1) -------- Light Angular Momentum Engine > --- PROPULSION (4) --- Gravmag System Gravmag System Gravmag Array > --- UTILITY (7) ------ Large Storage Unit High-capacity Storage Unit Experimental Sensor Array Advanced Signal Interpreter Layered Light Armor Plating > --- WEAPON (3) ------- Heavy Missile Launcher Heavy Missile Launcher > --- INVENTORY (18) --- Armored Treads Armored Treads Gravmag System Gravmag System Nuclear Pulse Thruster High-capacity Storage Unit Long-range Sensor Array Improved Light Armor Plating Improved Light Armor Plating Hacking Suite Sensor Drone Bay (20/20) Gauss Rifle Flak Gun Precision Assault Rifle Rocket Launcher Mini Grenade Launcher Katana Axe Peak State ------------ > --- POWER ------------ Light Angular Momentum Engine > --- PROPULSION ------- Gravmag System Gravmag System Gravmag Array > --- UTILITY ---------- Large Storage Unit High-capacity Storage Unit Experimental Sensor Array Advanced Signal Interpreter Transmission Jammer Improved Light Armor Plating Layered Light Armor Plating > --- WEAPON ----------- Flak Gun Flak Gun Precision Assault Rifle > --- INVENTORY -------- Armored Treads Armored Treads Gravmag System Gravmag System Nuclear Pulse Thruster High-capacity Storage Unit Long-range Sensor Array Improved Light Armor Plating Insulated Plating Hacking Suite Sensor Drone Bay Gauss Rifle Rocket Launcher Mini Grenade Launcher Heavy Missile Launcher Heavy Missile Launcher Katana Axe [Rating: 63] Favorites ----------- Power Improved Deuterium Engine Engine Improved Deuterium Engine Propulsion Armored Treads Treads Armored Treads Leg Aluminum Leg Wheel Armored Huge Wheel Hover Unit Gravmag System Utility High-capacity Storage Unit Device Experimental Sensor Array Storage High-capacity Storage Unit Processor Advanced Signal Interpreter Protection Improved Light Armor Plating Weapon Improved Assault Rifle Energy Gun EM Pulse Gun Ballistic Gun Improved Assault Rifle Launcher Mini Grenade Launcher Slashing Weapon Katana Build | -11 -10 -10 -10 -9 -8 -8 -8 -8 -7 -7 -6 -6 ------- Run | Scr Mat Min Exi Min Mat Gar Mat Gar Fac Sto Fac Was Slots Evolved 8 | . . . . . 4 . . . 2 . 2 . Power . | . . . . . . . . . . . . . Propulsion 2 | . . . . . 1 . . . 1 . . . Utility 5 | . . . . . 2 . . . 1 . 2 . Weapon 1 | . . . . . 1 . . . . . . . Parts Attached 145 | 1 6 5 2 1 5 5 21 2 45 38 11 3 Power 11 | . . 1 . 1 1 . 2 . 3 2 1 . Engine 11 | . . 1 . 1 1 . 2 . 3 2 1 . Core . | . . . . . . . . . . . . . Reactor . | . . . . . . . . . . . . . Propulsion 32 | . 2 3 . . 1 3 4 . 11 3 5 . Treads 23 | . 2 2 . . 1 3 3 . 9 3 . . Leg . | . . . . . . . . . . . . . Wheel 4 | . . 1 . . . . 1 . 2 . . . Hover 5 | . . . . . . . . . . . 5 . Flight . | . . . . . . . . . . . . . Utility 52 | 1 2 . 2 . 2 1 2 . 17 20 4 1 Device 19 | . . . . . . . . . 8 10 1 . Storage 7 | 1 2 . 2 . 1 . . . . . 1 . Processor 2 | . . . . . . . 1 . 1 . . . Hackware . | . . . . . . . . . . . . . Protection 24 | . . . . . 1 1 1 . 8 10 2 1 Artifact . | . . . . . . . . . . . . . Weapon 50 | . 2 1 . . 1 1 13 2 14 13 1 2 Energy Gun . | . . . . . . . . . . . . . Energy Cannon . | . . . . . . . . . . . . . Ballistic Gun 32 | . 2 1 . . 1 1 8 1 9 8 1 . Ballistic Cannon . | . . . . . . . . . . . . . Launcher 7 | . . . . . . . 1 1 1 2 . 2 Special Weapon . | . . . . . . . . . . . . . Impact Weapon . | . . . . . . . . . . . . . Slashing Weapon 11 | . . . . . . . 4 . 4 3 . . Piercing Weapon . | . . . . . . . . . . . . . Special Melee Weapon . | . . . . . . . . . . . . . Unidentified Prototypes 3 | . 1 . . . . . . . . 2 . . Parts Lost 18 | . . . . . 1 . 3 . 10 1 2 1 Power 3 | . . . . . . . 1 . 1 . 1 . Propulsion 4 | . . . . . . . 1 . 2 1 . . Utility 4 | . . . . . 1 . . . 2 . . 1 Weapon 7 | . . . . . . . 1 . 5 . 1 . Highest Loss Streak 3 | . . . . . 1 . 1 . 3 1 2 1 Average Slot Usage (%) 96 | . 99 100 100 100 87 100 93 90 93 100 95 93 Engine 9 | . 14 14 14 14 9 9 8 9 6 7 5 6 Treads 23 | . 22 27 28 28 19 27 16 9 25 30 15 . Wheel 1 | . . . . . . . 5 9 1 . . . Device 1 | . . . . . . . . . 2 5 13 13 Storage 25 | . 28 28 28 28 27 27 27 27 23 23 17 13 Processor 4 | . . . . . . . 7 9 7 7 6 6 Protection 2 | . . . . . 4 9 1 . 4 1 8 13 Ballistic Gun 23 | . 22 28 28 28 27 27 25 20 18 22 19 9 Naked Turns . | . . . . . . . . . . . . . Heaviest Build 124 | 17 43 43 75 75 118 118 118 115 124 121 123 84 Greatest Support 80 | 20 40 40 40 40 60 60 60 28 80 80 80 50 Greatest Overweight (x) 5 | . 2 4 1 1 2 1 4 5 5 2 1 1 Average Overweight (x) 1 | . 1 1 1 1 1 1 2 4 1 1 1 1 Largest Inventory Capacity 28 | 8 16 16 20 20 28 28 28 28 28 28 28 18 Average Capacity 24 | 6 15 16 19 20 27 28 28 28 28 28 23 18 Most Carried 28 | 6 16 16 20 20 25 28 28 28 28 28 28 18 Average Carried 23 | 6 13 15 18 19 23 24 27 28 27 27 22 18 Final Capacity 28 | 8 16 16 20 20 28 28 28 28 28 28 18 18 Final Carried 28 | 6 16 16 20 20 25 28 28 28 26 28 18 18 Class Distribution -------------------- 38% | Hauler-Skirmisher 30% | Hauler-Mutant 20% | Mutant 5% | Hauler-Tank 3% | Hauler-Gunner Dominant Class ---------------- Mutant | -10/Materials Mutant | -10/Mines Hauler-Mutant | -10/Exiles Hauler-Mutant | -9/Mines Hauler-Skirmisher | -8/Materials Hauler-Skirmisher | -8/Garrison Hauler-Skirmisher | -8/Materials Hauler-Mutant | -8/Garrison Hauler-Mutant | -7/Factory Hauler-Skirmisher | -7/Storage Hauler-Skirmisher | -6/Factory Mutant | -6/Waste Resources | -11 -10 -10 -10 -9 -8 -8 -8 -8 -7 -7 -6 -6 ----------- Run | Scr Mat Min Exi Min Mat Gar Mat Gar Fac Sto Fac Was Matter Collected 4168 | 219 102 194 20 52 144 131 599 45 1631 839 192 . Remotely . | . . . . . . . . . . . . . Salvage Created 5041 | 100 177 457 . 57 145 229 645 45 1728 990 203 265 Parts 259 | 2 9 25 . 6 10 18 36 1 93 50 9 . Haulers Intercepted 2 | . . . . . . . 1 . . 1 . . Recyclers Shooed 1 | . . . . . . . . . . . 1 . Parts Field Recycled . | . . . . . . . . . . . . . Retrieved Matter . | . . . . . . . . . . . . . Parts Self-Destructed . | . . . . . . . . . . . . . Prevented . | . . . . . . . . . . . . . Kills | -11 -10 -10 -10 -9 -8 -8 -8 -8 -7 -7 -6 -6 ------- Run | Scr Mat Min Exi Min Mat Gar Mat Gar Fac Sto Fac Was Combat Hostiles Destroyed 94 | . 4 11 . 3 4 7 13 1 33 15 2 1 Guns 91 | . 4 11 . 3 4 7 13 1 31 15 2 . AOE 3 | . . . . . . . . . 2 . . 1 Classes Destroyed 13 | 1 2 2 . . . . 4 . 3 . . 1 Worker 2 | . . . . . . . . . 1 1 . . Hauler 2 | . . . . . . . 1 . . 1 . . Recycler 4 | 1 . . . . . . . . 2 . 1 . Operator 2 | . . . . . . . 1 . 1 . . . Watcher 5 | . 1 . . . . . 2 . 1 1 . . Swarmer 19 | . . 3 . 2 2 4 4 . 4 . . . Grunt 34 | . 4 6 . 1 . . 3 1 13 6 . . Brawler 1 | . . . . . . . . . 1 . . . Duelist 2 | . . . . . . . 1 . . 1 . . Sentry 23 | . . 2 . . 2 3 4 . 6 6 . . Hunter 5 | . . . . . . . 1 . 2 . 2 . Programmer 9 | . . . . . . . . . 7 2 . . Compactor 1 | . . . . . . . . . . . . 1 Best Kill Streak 6 | 1 2 3 . 2 4 6 2 1 3 2 2 1 Combat Bots Only 6 | . 2 3 . 2 4 6 2 1 3 2 2 1 Max Kills in Single Turn 2 | 1 1 1 . 1 1 2 2 1 2 2 1 1 Gunslinging 1 | . . . . . . 1 1 . . . . . Exploded 1 | . . . . . . . . . 1 . . 1 Melee . | . . . . . . . . . . . . . Uniques/NPCs Destroyed . | . . . . . . . . . . . . . Combat | -11 -10 -10 -10 -9 -8 -8 -8 -8 -7 -7 -6 -6 -------- Run | Scr Mat Min Exi Min Mat Gar Mat Gar Fac Sto Fac Was Damage Taken 7156 | . 133 439 . 26 305 121 695 201 3719 748 599 170 Core 637 | . 47 46 . . 17 24 64 38 289 48 32 32 Absorbed by Shields . | . . . . . . . . . . . . . Core Remaining (%) 71 | 100 . . . 62 . . . 74 . 51 . . Volleys Fired 289 | 3 9 24 . 7 11 9 55 5 115 35 9 7 Largest 3 | 2 2 2 . 2 3 3 3 3 3 3 3 2 Hottest 84 | 60 63 46 . 46 69 69 75 73 81 84 84 78 Shots Fired 734 | 6 18 48 . 14 33 27 162 13 278 97 24 14 Gun 712 | 6 18 48 . 14 33 27 161 13 274 94 24 . Cannon . | . . . . . . . . . . . . . Launcher 22 | . . . . . . . 1 . 4 3 . 14 Special . | . . . . . . . . . . . . . Kinetic 705 | 3 14 48 . 14 33 27 161 13 274 94 24 . Thermal . | . . . . . . . . . . . . . Explosive 22 | . . . . . . . 1 . 4 3 . 14 Electromagnetic 7 | 3 4 . . . . . . . . . . . Robot Hit Streak 22 | 2 12 17 . 11 16 4 12 5 19 22 6 7 Robot Miss Streak 5 | 2 1 2 . 3 3 4 3 1 3 5 4 2 Penetration Max 1 | . . . . . . . . . 1 1 . . Secondary Targets 16 | . . . . 2 2 3 3 . 4 1 1 . Max Gunslinging Chain 2 | . . . . 1 1 2 1 . 1 1 1 . Shots Hit Robots 533 | 3 15 37 . 11 25 15 101 10 206 78 22 10 Core Hits 284 | 2 7 16 . 3 6 10 33 2 91 89 21 4 Critical Hits 9 | . . 1 . 1 2 . . . 5 . . . Critical Kills 5 | . . 1 . . . . . . 4 . . . Critical Parts Destroyed 2 | . . . . 1 1 . . . . . . . Melee Attacks 24 | . . . . . . . 6 . 15 3 . . Impact . | . . . . . . . . . . . . . Slashing 24 | . . . . . . . 6 . 15 3 . . Piercing . | . . . . . . . . . . . . . Sneak Attacks . | . . . . . . . . . . . . . Combat Hostiles . | . . . . . . . . . . . . . Follow-up Attacks . | . . . . . . . . . . . . . Damage Inflicted 11364 | 35 280 565 . 197 344 190 1359 165 4423 1752 328 1726 Guns 8811 | 35 238 565 . 197 344 190 1359 165 3693 1697 328 . Cannons . | . . . . . . . . . . . . . Explosions 2361 | . 42 . . . . . . . 593 . . 1726 Melee 81 | . . . . . . . . . 81 . . . Ramming 111 | . . . . . . . . . 56 55 . . Kinetic 8737 | 23 176 565 . 197 344 190 1359 165 3693 1697 328 . Thermal 42 | . 42 . . . . . . . . . . . Explosive 2319 | . . . . . . . . . 593 . . 1726 Electromagnetic 74 | 12 62 . . . . . . . . . . . Impact . | . . . . . . . . . . . . . Slashing 81 | . . . . . . . . . 81 . . . Piercing . | . . . . . . . . . . . . . Highest Corruption 7 | . . . . . . . . . 1 2 . 7 Average Corruption 1 | . . . . . . . . . 1 1 . 7 Corruption Purged 1 | . . . . . . . . . 1 . . . Effects 21 | . . . . . . . . . 2 18 . 1 Message Errors 8 | . . . . . . . . . . 8 . . Heat Flow Errors 1 | . . . . . . . . . . 1 . . Energy Discharges 3 | . . . . . . . . . . 3 . . Data Loss (minor) 5 | . . . . . . . . . . 4 . 1 Targeting Errors 4 | . . . . . . . . . 2 2 . . Overload Shots . | . . . . . . . . . . . . . Overflow Damage 59 | . . . . . . . . . 29 2 . 28 Projectiles . | . . . . . . . . . . . . . Explosions 57 | . . . . . . . . . 29 . . 28 Melee 2 | . . . . . . . . . . 2 . . Knockbacks . | . . . . . . . . . . . . . Impact . | . . . . . . . . . . . . . Kinetic . | . . . . . . . . . . . . . Secondary . | . . . . . . . . . . . . . Self-Inflicted Damage 196 | . . . . . . . . . 66 . . 130 Shots 7 | . . . . . . . . . 4 . . 3 Rammed 3 | . . . . . . . . . 1 2 . . Targets Rammed 4 | . . . . . . . . . 2 2 . . Kicked . | . . . . . . . . . . . . . Crushed 1 | . . . . . . . . . 1 . . . Highest Temperature 138 | . 24 14 . 4 75 21 33 66 104 121 87 138 Average Temperature 27 | . 9 7 . 4 45 8 13 32 28 23 40 63 Received Heat Transfer 1701 | . 69 171 . 9 63 9 126 66 936 252 . . Siege Activations . | . . . . . . . . . . . . . Robots Corrupted . | . . . . . . . . . . . . . Combat Hostiles . | . . . . . . . . . . . . . Parts Fried . | . . . . . . . . . . . . . Impact Corruptions 1 | . . . . . . . . . . 1 . . Robots Melted . | . . . . . . . . . . . . . Combat Hostiles . | . . . . . . . . . . . . . Parts Melted . | . . . . . . . . . . . . . Heat Transferred 50 | . 50 . . . . . . . . . . . Parts Sabotaged . | . . . . . . . . . . . . . Parts Stolen . | . . . . . . . . . . . . . Parts Stripped . | . . . . . . . . . . . . . Power Chain Reactions 1 | . 1 . . . . . . . . . . . Missiles Intercepted . | . . . . . . . . . . . . . Alert | -11 -10 -10 -10 -9 -8 -8 -8 -8 -7 -7 -6 -6 ------- Run | Scr Mat Min Exi Min Mat Gar Mat Gar Fac Sto Fac Was Peak Influence 478 | 5 66 140 . 83 174 478 233 45 400 237 103 44 Initial 232 | . 3 . . . 25 113 232 25 23 178 53 . Average 105 | 3 9 47 . 25 93 203 62 32 213 117 45 18 Maximum Alert Level 2 | . . . . . . 2 1 . 2 1 . . Low Security (%) 80 | 100 100 100 . 100 100 35 94 100 45 93 100 100 Level 1 18 | . . . . . . 56 5 . 54 6 . . Level 2 . | . . . . . . 8 . . . . . . Level 3 . | . . . . . . . . . . . . . Level 4 . | . . . . . . . . . . . . . Level 5 . | . . . . . . . . . . . . . High Security . | . . . . . . . . . . . . . Max Security . | . . . . . . . . . . . . . Squads Dispatched 16 | . . . . . 2 . 1 . 10 3 . . Investigation 1 | . . . . . . . . . 1 . . . Extermination 8 | . . . . . . . . . 6 2 . . Reinforcement 5 | . . . . . . . 1 . 3 1 . . Assault . | . . . . . . . . . . . . . Garrison 2 | . . . . . 2 . . . . . . . Intercept . | . . . . . . . . . . . . . Construction Impeded . | . . . . . . . . . . . . . Haulers Reinforced 2 | . . . . . . . . . 1 1 . . Stealth | -11 -10 -10 -10 -9 -8 -8 -8 -8 -7 -7 -6 -6 --------- Run | Scr Mat Min Exi Min Mat Gar Mat Gar Fac Sto Fac Was Distress Signals 7 | . 1 . . . . . 6 . . . . . Communications Jammed 9 | . . . . . . . . . . . 9 . Distress Signals 9 | . . . . . . . . . . . 9 . Times Spotted 164 | . 5 15 . 7 6 7 31 10 54 22 3 4 Peak Tracking Total 8 | . 2 3 . 3 2 5 4 8 5 3 3 4 Tactical Retreats 15 | . . 1 . 3 . . 1 . 8 2 . . Traps | -11 -10 -10 -10 -9 -8 -8 -8 -8 -7 -7 -6 -6 ------- Run | Scr Mat Min Exi Min Mat Gar Mat Gar Fac Sto Fac Was Traps Triggered 9 | . 1 . . . . 1 . 2 3 1 1 . Indirectly . | . . . . . . . . . . . . . Trap Hack Attempts . | . . . . . . . . . . . . . Triggered . | . . . . . . . . . . . . . Disarmed . | . . . . . . . . . . . . . Reprogrammed . | . . . . . . . . . . . . . Reused . | . . . . . . . . . . . . . Traps Extracted . | . . . . . . . . . . . . . Installed . | . . . . . . . . . . . . . Triggered . | . . . . . . . . . . . . . Machines | -11 -10 -10 -10 -9 -8 -8 -8 -8 -7 -7 -6 -6 ---------- Run | Scr Mat Min Exi Min Mat Gar Mat Gar Fac Sto Fac Was Machines Disabled 3 | . . . . . . . . . . 3 . . Max in Single Turn 1 | . . . . . . . . . . 1 . . Garrison Access 1 | . . . . . . . . . 1 . . . Machines Sabotaged . | . . . . . . . . . . . . . Garrisons Compromised . | . . . . . . . . . . . . . Overloaded Fab Kills . | . . . . . . . . . . . . . Fab Network Shutdowns . | . . . . . . . . . . . . . Hacking | -11 -10 -10 -10 -9 -8 -8 -8 -8 -7 -7 -6 -6 --------- Run | Scr Mat Min Exi Min Mat Gar Mat Gar Fac Sto Fac Was Machines Accessed 47 | . 9 1 4 2 1 . 12 . 10 8 . . Terminals 27 | . 8 . . 2 . . 8 . 4 5 . . Fabricators 1 | . . . . . . . . . 1 . . . Repair Stations 4 | . 1 . . . . . 1 . 1 1 . . Recycling Units 5 | . . . . . . . 1 . 2 2 . . Scanalyzers 2 | . . . . . . . 1 . 1 . . . Garrison Access 3 | . . . . . 1 . 1 . 1 . . . Total Hacks 158 | . 29 1 19 7 1 . 39 . 47 15 . . Successful 120 | . 17 1 19 1 1 . 29 . 43 9 . . Failed 37 | . 11 . . 6 . . 10 . 4 6 . . Catastrophic 4 | . 1 . . . . . . . 2 1 . . Database Lockouts 1 | . 1 . . . . . . . . . . . Manual 68 | . 19 . 1 7 . . 27 . 6 8 . . Terminals 86 | . 27 . . 7 . . 33 . 9 10 . . Fabricators 1 | . . . . . . . . . 1 . . . Repair Stations 8 | . 2 . . . . . 2 . 2 2 . . Recycling Units 6 | . . . . . . . 1 . 2 3 . . Scanalyzers 34 | . . . . . . . 2 . 32 . . . Garrison Access 3 | . . . . . 1 . 1 . 1 . . . Terminal Hacks 49 | . 10 1 19 1 . . 14 . 2 2 . . Record 19 | . 1 . 18 . . . . . . . . . Robot Analysis 6 | . 2 . . 1 . . 3 . . . . . Prototype ID Bank 6 | . 3 . . . . . 3 . . . . . Open Door 1 | . . 1 . . . . . . . . . . Branch Access Points 1 | . . . . . . . 1 . . . . . Terminal Index 1 | . . . . . . . 1 . . . . . Unreport Threat 3 | . . . . . . . 1 . 1 1 . . Locate Traps 5 | . 2 . . . . . 2 . . 1 . . Recall Reinforcements 1 | . . . . . . . 1 . . . . . Hauler Manifests 1 | . 1 . . . . . . . . . . . Zone Layout 4 | . 1 . . . . . 2 . 1 . . . EX-Prototype ID Bank 1 | . . . 1 . . . . . . . . . Fabricator Hacks . | . . . . . . . . . . . . . Repair Station Hacks 6 | . 2 . . . . . 1 . 2 1 . . Scan Component 4 | . 1 . . . . . 1 . 1 1 . . Repair 2 | . 1 . . . . . . . 1 . . . Recycling Unit Hacks 5 | . . . . . . . 1 . 2 2 . . Report Inventory 4 | . . . . . . . 1 . 1 2 . . Retrieve Matter 1 | . . . . . . . . . 1 . . . Scanalyzer 34 | . . . . . . . 2 . 32 . . . Insert Component 16 | . . . . . . . 1 . 15 . . . Analyze 18 | . . . . . . . 1 . 17 . . . Garrison Access Hacks 3 | . . . . . 1 . 1 . 1 . . . Unlock Access 2 | . . . . . 1 . 1 . . . . . Seal Access 1 | . . . . . . . . . 1 . . . Unauthorized Hacks 23 | . 5 . . . . . 10 . 4 4 . . Terminals 23 | . 5 . . . . . 10 . 4 4 . . Track 6 | . 1 . . . . . 3 . 1 1 . . Assimilate 3 | . . . . . . . 2 . . 1 . . Botnet 11 | . 2 . . . . . 5 . 2 2 . . Operators 3 | . 2 . . . . . . . 1 . . . Fabricators . | . . . . . . . . . . . . . Repair Stations . | . . . . . . . . . . . . . Recycling Units . | . . . . . . . . . . . . . Scanalyzers . | . . . . . . . . . . . . . Garrison Access . | . . . . . . . . . . . . . Data Cores Recovered 1 | . . . . . . . . . 1 . . . Used . | . . . . . . . . . . . . . Hacking Detections 36 | . 7 . . 2 . . 11 . 8 8 . . Full Trace Events . | . . . . . . . . . . . . . Feedback Events . | . . . . . . . . . . . . . Feedback Blocked . | . . . . . . . . . . . . . Robot Schematics Acquired . | . . . . . . . . . . . . . Robots Built . | . . . . . . . . . . . . . Matter . | . . . . . . . . . . . . . Time . | . . . . . . . . . . . . . Total Robot Build Rating . | . . . . . . . . . . . . . Part Schematics Acquired 14 | . . . . . . . . . 14 . . . Parts Built . | . . . . . . . . . . . . . Matter . | . . . . . . . . . . . . . Time . | . . . . . . . . . . . . . Total Part Build Rating . | . . . . . . . . . . . . . Parts Repaired 2 | . 1 . . . . . . . 1 . . . Time 64 | . 26 . . . . . . . 38 . . . Parts Recycled . | . . . . . . . . . . . . . Recycled Matter . | . . . . . . . . . . . . . Retrieved Matter . | . . . . . . . . . . . . . Retrieved Components . | . . . . . . . . . . . . . Parts Scanalyzed 14 | . . . . . . . 1 . 13 . . . Part Schematics Acquired 14 | . . . . . . . . . 14 . . . Parts Damaged . | . . . . . . . . . . . . . Bothacking | -11 -10 -10 -10 -9 -8 -8 -8 -8 -7 -7 -6 -6 ------------ Run | Scr Mat Min Exi Min Mat Gar Mat Gar Fac Sto Fac Was Used RIF Installer 2 | . . . . . . 1 . 1 . . . . Alert ID Control 1 | . . . . . . . . 1 . . . . Robots Hacked . | . . . . . . . . . . . . . Non-combat . | . . . . . . . . . . . . . Combat . | . . . . . . . . . . . . . Robot Hacks Applied . | . . . . . . . . . . . . . Relay Couplers Released 4 | . . . . . . . . . 4 . . . Programmers 4 | . . . . . . . . . 4 . . . Robots Rewired . | . . . . . . . . . . . . . Allies Hacked . | . . . . . . . . . . . . . Hacks Repelled . | . . . . . . . . . . . . . Allies | -11 -10 -10 -10 -9 -8 -8 -8 -8 -7 -7 -6 -6 -------- Run | Scr Mat Min Exi Min Mat Gar Mat Gar Fac Sto Fac Was Total Allies 4 | . . . . 3 . . 1 . . . . . Largest Group 3 | . . . . 3 . . 1 . . . . . Highest-Rated Group 40 | . . . . 40 . . 10 . . . . . Highest-Rated Ally 16 | . . . . 16 . . 10 . . . . . Total Orders . | . . . . . . . . . . . . . Ally Attacks 8 | . . . . 8 . . . . . . . . Total Damage 55 | . . . . 55 . . . . . . . . Kills 1 | . . . . 1 . . . . . . . . Allies Corrupted . | . . . . . . . . . . . . . Allies Melted . | . . . . . . . . . . . . . Intel | -11 -10 -10 -10 -9 -8 -8 -8 -8 -7 -7 -6 -6 ------- Run | Scr Mat Min Exi Min Mat Gar Mat Gar Fac Sto Fac Was Robot Analysis Total 6 | . 2 . . 1 . . 3 . . . . . Derelict Logs Recovered 2 | . . 1 . 1 . . . . . . . . Drone Launches . | . . . . . . . . . . . . . Drone Recoveries . | . . . . . . . . . . . . . Exploration | -11 -10 -10 -10 -9 -8 -8 -8 -8 -7 -7 -6 -6 ------------- Run | Scr Mat Min Exi Min Mat Gar Mat Gar Fac Sto Fac Was Turns Passed 16242 | 45 1539 1581 678 1070 270 891 3078 451 3929 2164 507 39 Spaces Moved 6593 | 29 807 669 373 577 111 264 1095 181 1589 631 258 9 Core . | . . . . . . . . . . . . . Treads 5173 | . 643 623 373 577 111 264 501 35 1275 631 140 . Legs 193 | 29 164 . . . . . . . . . . . Wheels 1100 | . . 46 . . . . 594 146 314 . . . Hover 127 | . . . . . . . . . . . 118 9 Flight . | . . . . . . . . . . . . . Fastest Speed 108 | 120 120 120 180 180 180 180 130 140 120 190 108 108 Average Speed 173 | 120 179 175 180 180 194 180 153 165 176 190 152 108 Slowest Speed 270 | 120 180 180 180 180 200 180 180 270 270 210 190 108 Overloaded Moves . | . . . . . . . . . . . . . Propulsion Burnouts . | . . . . . . . . . . . . . Robots Hopped . | . . . . . . . . . . . . . Cave-ins Triggered . | . . . . . . . . . . . . . Exploration Rate (%) 50 | 2 98 99 72 99 8 52 64 29 35 61 7 24 Regions Visited 12 Branch Regions 4 Pre-discovered Areas 2 | . . . 1 1 . . . . . . . . Known Exits Taken 5 | . . 1 . . 1 . 1 . 1 1 . . Unknown Exits Taken 4 | 1 1 . 1 1 . . . . . . . . Scrap Searched 3 | . . 1 . 2 . . . . . . . . Spaces Dug 10 | . . . . . . . 5 . 4 1 . . Terrain Destroyed 175 | . 3 . . . . . 16 . 25 43 . 88 Melee 10 | . . . . . . . 5 . 4 1 . . Projectile 1 | . . . . . . . . . . 1 . . AOE 164 | . 3 . . . . . 11 . 21 41 . 88 Terrain Rammed . | . . . . . . . . . . . . . Walls Destroyed . | . . . . . . . . . . . . . Machines Disabled . | . . . . . . . . . . . . . Actions | -11 -10 -10 -10 -9 -8 -8 -8 -8 -7 -7 -6 -6 --------- Run | Scr Mat Min Exi Min Mat Gar Mat Gar Fac Sto Fac Was Total 10770 | 32 879 1029 380 596 139 659 2369 324 2483 1508 353 19 Wait 3557 | . 43 319 . 9 6 379 1158 133 676 781 53 . Move 6580 | 28 806 668 372 576 110 262 1094 179 1588 630 258 9 Hop . | . . . . . . . . . . . . . Pick Up 80 | . 11 5 4 1 7 1 13 . 19 8 11 . Fast Attach 18 | 1 1 1 . . 1 . 3 . 6 4 1 . Attach 29 | . 1 . . . 3 1 1 . 16 1 6 . Detach 9 | . 1 . . . . . . . 6 . 2 . Swap 98 | . 4 4 2 1 1 4 17 2 23 33 4 3 Drop 67 | . 3 8 2 2 . 1 22 . 15 11 3 . Fire 289 | 3 9 24 . 7 11 9 55 5 115 35 9 7 Melee 24 | . . . . . . . 6 . 15 3 . . Ram . | . . . . . . . . . . . . . Kick . | . . . . . . . . . . . . . Crush 4 | . . . . . . . . . 2 2 . . Escape Stasis 9 | . . . . . . 2 . 5 2 . . . Rewire 6 | . . . . . . . . . . . 6 . Trap . | . . . . . . . . . . . . . Miscellaneous . | . . . . . . . . . . . . . Route ------- -11/Scrapyard -10/Materials (discovered 5 exits: [*Mat x3] / *Min x2) -10/Mines (discovered 3 exits: [*Mat x2] / *Exi) -10/Exiles -9/Mines (discovered 2 exits: *Mat x2) -8/Materials -8/Garrison (discovered 3 exits: *Mat x3) -8/Materials (discovered 2 exits: *Fac / Gar) -8/Garrison -7/Factory (discovered 3 exits: *Fac / *Sto / *Low) -7/Storage (discovered 2 exits: *Fac / *Rec) -6/Factory -6/Waste History --------- Turn | Location | Event 4 | -11/Scrapyard | Discovered new exit (range 1) 46 | -11/Scrapyard | Entered Materials 121 | -10/Materials | Met 8R-AWN 307 | -10/Materials | Build established: Mutant 598 | -10/Materials | Repaired EM Pulse Gun 689 | -10/Materials | Discovered new exit (range 13) 938 | -10/Materials | Discovered new exit (range 4) 1100 | -10/Materials | Discovered new exit (range 14) 1118 | -10/Materials | Discovered new exit (range 10) 1262 | -10/Materials | Discovered new exit (range 7) 1362 | -10/Materials | Central database locked down 1585 | -10/Materials | Entered Mines 1587 | -10/Mines | Followed 8R-AWN into the Mines 1856 | -10/Mines | YI-UF0 nonchalantly dropped a Grenade Launcher on the ground 1883 | -10/Mines | Found a damaged Exp. Sensor Array with a note attached 1888 | -10/Mines | Found Prototype Device 2016 | -10/Mines | Found the Drone Emporium 2024 | -10/Mines | Found Prototype Device 2075 | -10/Mines | Identified exit to Exiles 2168 | -10/Mines | Discovered new exit (range 16) 2654 | -10/Mines | Discovered new exit (range 13) 2661 | -10/Mines | Received a Rocket Launcher from a helpful Derelict 3166 | -10/Mines | Entered Exiles 3210 | -10/Exiles | Welcomed by 8R-AWN 3240 | -10/Exiles | Met EX-HEX 3359 | -10/Exiles | Met EX-DEC 3513 | -10/Exiles | Learned location of Zion (-6) 3551 | -10/Exiles | Met EX-BIN 3576 | -10/Exiles | Aligned with FarCom system 3578 | -10/Exiles | Given EX-Vault access code 3618 | -10/Exiles | Build established: Hauler-Mutant 3657 | -10/Exiles | Opened EX-Vault 3670 | -10/Exiles | Found Modified TNC 3673 | -10/Exiles | Found Field Lobotomy Kit 3710 | -10/Exiles | Warned to stay clear of 0b10 Research branches 3822 | -10/Exiles | Discovered new exit (range 14) 3844 | -10/Exiles | Stole two prototypes: Modified TNC, Field Lobotomy Kit 3844 | -10/Exiles | Entered Mines 3855 | -9/Mines | Assisted by bots powering up and referring to "LRC-V3" 3909 | -9/Mines | Discovered new exit (range 6) 4161 | -9/Mines | Discovered new exit (range 9) 4914 | -9/Mines | Entered Materials 4914 | -8/Materials | Evolved 4 slots: Propulsion x1, Utility x2, Weapon x1 5030 | -8/Materials | Garrison activated, responded to threat 5182 | -8/Materials | Identified exit to Garrison 5184 | -8/Materials | Entered Garrison 5228 | -8/Garrison | Build established: Hauler-Skirmisher 5583 | -8/Garrison | Discovered new exit (range 8) 5642 | -8/Garrison | Triggered checkpoint 5689 | -8/Garrison | Discovered new exit (range 11) 5890 | -8/Garrison | Triggered checkpoint 6015 | -8/Garrison | Discovered new exit (range 14) 6066 | -8/Garrison | Installed Relay Interface Framework 6075 | -8/Garrison | Entered Materials 8609 | -8/Materials | Discovered new exit (range 15) 9152 | -8/Materials | Identified exit to Garrison 9153 | -8/Materials | Entered Garrison 9160 | -8/Garrison | Expanded RIF knowledge: Alert ID Control 9304 | -8/Garrison | Triggered checkpoint 9585 | -8/Garrison | Spotted B-75 Beast 9588 | -8/Garrison | Discovered new exit (range 11) 9604 | -8/Garrison | Entered Factory 9604 | -7/Factory | Evolved 2 slots: Propulsion x1, Utility x1 9606 | -7/Factory | FarCom data flow suspended 10185 | -7/Factory | Build established: Hauler-Mutant 11378 | -7/Factory | Discovered new exit (range 16) 11894 | -7/Factory | Repaired Katana 11950 | -7/Factory | Build established: Hauler-Gunner 12598 | -7/Factory | Build established: Hauler-Mutant 12884 | -7/Factory | Identified Exp. Sensor Array 12884 | -7/Factory | Identified Sensor Drone Bay 13071 | -7/Factory | Discovered new exit (range 8) 13122 | -7/Factory | Identified exit to Lower Caves 13200 | -7/Factory | Discovered new exit (range 15) 13302 | -7/Factory | Lost 3 parts (1n1u1w) 13394 | -7/Factory | Identified exit to Storage 13533 | -7/Factory | Entered Storage 13746 | -7/Storage | Build established: Hauler-Skirmisher 14340 | -7/Storage | Used back door to open Recycling access 14340 | -7/Storage | Discovered new exit (range 4) 14343 | -7/Storage | Identified exit to Recycling 15300 | -7/Storage | Discovered new exit (range 15) 15327 | -7/Storage | Identified exit to Factory 15697 | -7/Storage | Entered Factory 15697 | -6/Factory | Evolved 2 slots: Utility x2 16204 | -6/Factory | Sucked down chute 16204 | -6/Factory | Entered Waste 16211 | -6/Waste | Spotted C-40 Crusher 16218 | -6/Waste | Destroyed C-40 Crusher 16219 | -6/Waste | EMP discharged 16223 | -6/Waste | Spotted C-40 Crusher 16224 | -6/Waste | Spotted C-40 Crusher 16232 | -6/Waste | Spotted C-40 Crusher 16240 | -6/Waste | Crushed by Compactor (1 part destroyed, 2 dropped) 16243 | -6/Waste | Self-destructed Last Messages --------------- 16147_ R-10 Processor inserts Shotgun into recycling unit. 16150_ R-10 Processor inserts Flexi-carbon Leg into recycling unit. 16166_ Acquired Nuclear Pulse Thruster. 16204_ Triggered Chute Trap. 16204_ A hatch slides open and sucks a vortex of air into the floor. LOCATION=UNKNOWN GOAL=ESCAPE 16209_ ALERT: Foreign system detected. Charging EMP. 16218_ C-40 Crusher destroyed. 16219_ System corrupted (+7). 16219_ Imp. Thermal Generator fried beyond repair. 16219_ 217 Matter fried beyond repair. 16223_ The unstable cave ceiling collapses. 16226_ Destroyed Antimatter Reactor. 16230_ System corrupted: Component data lost. 16232_ The unstable cave ceiling collapses. 16240_ Insulated Plating crushed. 16240_ Transmission Jammer crushed. 16240_ Flak Gun crushed. 16242_ The unstable cave ceiling collapses. Map ----- +----------------------------------------------------+ | ?????????????????????????????????????????????????? | | ?????????????????????????????????????????????????? | | ?????????????????????????????????????????????????? | | ?????????????????????????????????????????????????? | | ?????????????????????????????????????????????????? | | ?????????????????????????????????????????????????? | | ?????????????????????????????????????????????????? | | ?????????????????????????????????????????????????? | | ?????????????????????????????????????????????????? | | ?????????????????????????????????????????????????? | | ???????????????????????????#?????????????????????? | | ??????????????????????????? ???????????????????? | | ??????????????????????????? #????????????????? | | ??????????????????????????? #????????????????? | | ?????????????????????????? #????????????????? | | ?????????????????????????? #????????????????? | | ?????????????????????????? #????????????????? | | ?????????????????????????? #????????????????? | | ?????????????????????????? #????????????????? | | ?????????????????????????? #????# ??????????? | | ???????????############### ### ??????????? | | ???????????# ## ?????????? | | ???????????# # ?????????? | | ???????????# # # ????????? | | ???????????# ?CC?????? | | ???????????# @CC CC CC ?CC?????? | | ???????????# [CC CC CC ????????? | | ???????????# ????????? | | ???????????# # ?????????? | | ???????????# # # # ?????????? | | ???????????# ## # ??????????? | | ???????????##############? # # ??????????? | | ?????????????????????????? ##### # ??????????? | | ?????????????????????????? #?????##???????????? | | ?????????????????????????? #??????????????????? | | ?????????????????????????? #??????????????????? | | ?????????????????????????? #??????????????????? | | ??????????????????????????? #??????????????????? | | ??????????????????????????? #??????????????????? | | ??????????????????????????? ???????????????????? | | ??????????????????????????? ?????????????????????? | | ?????????????????????????????????????????????????? | | ?????????????????????????????????????????????????? | | ?????????????????????????????????????????????????? | | ?????????????????????????????????????????????????? | | ?????????????????????????????????????????????????? | | ?????????????????????????????????????????????????? | | ?????????????????????????????????????????????????? | | ?????????????????????????????????????????????????? | | ?????????????????????????????????????????????????? | +----------------------------------------------------+ Best States ------------- Heat Dissipation 37 Energy Generation 18 Energy Capacity 290 Matter Stores 300 Matter Capacity 300 Sight Range 16 Robot Scan Range 30 Terrain Scan Density 10 Jamming Range 8 Armor Coverage 300 Resistance: EM 15 Evasion (%) 40 Recoil Reduction 4 Item Schematics ----------------- Arm. Treads | -7/Factory | Scanalyzed Hacking Suite | -7/Factory | Scanalyzed Katana | -7/Factory | Scanalyzed Imp. Light Armor Plating | -7/Factory | Scanalyzed Exp. Sensor Array | -7/Factory | Scanalyzed Hvy. Missile Launcher | -7/Factory | Scanalyzed Gravmag System | -7/Factory | Scanalyzed Gauss Rifle | -7/Factory | Scanalyzed Flak Gun | -7/Factory | Scanalyzed Mni. Grenade Launcher | -7/Factory | Scanalyzed Hrd. Medium Armor Plating | -7/Factory | Scanalyzed Rocket Launcher | -7/Factory | Scanalyzed Lrn. Sensor Array | -7/Factory | Scanalyzed Lrg. Storage Unit | -7/Factory | Scanalyzed Robot Schematics ------------------ None Fabricated ------------ Nothing Alien Tech Used ----------------- None Achievements -------------- None Challenges ------------ None Game ------ Seed CentriumParticleBeamcaster Manual? 0 Play Time 01:39:20 Cumulative 118.1 hours Start 2020.11.14 @ 00:25:37 End 2020.11.14 @ 21:24:58 Sessions 3 Manual Loads 0 Difficulty Rogue Special Mode Halloween2020/ForbiddenLore Game No. 99 Rogue 99 Adventurer 0 Explorer 0 Win Type - Total 3 Types 3/0/0/0/0/0/0/0/0 Lore% 43 Gallery% 56 Achievement% 42 Wizard Run 0 Options --------- ASCII 1 Keyboard 1 Movement Arrows Keybinds 0 Fullscreen 1 Font 24/Proggy Map View 76x50 Tactical HUD 1 Map Filters NONE Filters NONE Steam 1 RUN: 1c6b5283-9bbb-427b-a959-347955b5ed6c